bitfinex/quotes_BTCUSD_20251230
["timestamp","ask_amount","ask_price","bid_price","bid_amount"]
[1767126300297,0.14799,88153.0,88142.0,0.01136]
[1767126300805,0.14799,88153.0,88142.0,0.02270532]
[1767126301433,0.14799,88153.0,88143.0,0.0113452]
[1767126301630,0.147441,88153.0,88143.0,0.0113452]
[1767126301998,0.147441,88153.0,88144.0,0.01134507]
[1767126302204,0.147441,88153.0,88143.0,0.0113452]
[1767126302427,0.147441,88153.0,88142.0,0.02270532]
[1767126302736,0.147441,88153.0,88144.0,0.01134507]
[1767126303809,0.14666,88171.0,88153.0,0.01134391]
[1767126304131,0.01134236,88165.0,88153.0,0.02270391]
[1767126304330,0.01134224,88166.0,88153.0,0.01136]
[1767126304766,0.01134236,88165.0,88153.0,0.01136]
[1767126305120,0.06805474,88165.0,88153.0,0.01136]
[1767126305325,0.45217371,88163.0,88153.0,0.01136]
[1767126305507,0.46351633,88163.0,88153.0,0.01136]
[1767126305912,8.871e-05,88164.0,88153.0,0.08413]
[1767126306135,8.871e-05,88164.0,88155.0,0.0680614]
[1767126306330,8.871e-05,88164.0,88158.0,0.01134327]
[1767126306532,8.871e-05,88164.0,88159.0,0.01134314]
[1767126306733,8.871e-05,88164.0,88157.0,0.01134339]
[1767126306942,8.871e-05,88164.0,88158.0,0.0680596]
[1767126307240,8.871e-05,88164.0,88159.0,0.01134314]
[1767126307657,8.871e-05,88164.0,88158.0,0.01134327]
[1767126308087,8.871e-05,88164.0,88159.0,0.01134314]
[1767126308242,0.05670394,88179.0,88158.0,0.01134327]
[1767126308243,0.14666,88179.0,88168.0,0.01134198]
[1767126308441,0.14666,88179.0,88171.0,0.01134159]
[1767126308644,0.14666,88179.0,88170.0,0.01134172]
[1767126308872,0.14666,88179.0,88169.0,0.02270185]
[1767126309184,0.14666,88179.0,88170.0,0.01134172]
[1767126309500,0.14666,88179.0,88169.0,0.02270185]
[1767126309996,0.14666,88179.0,88170.0,0.01134172]
[1767126310346,0.14666,88179.0,88171.0,0.01134159]
[1767126310569,0.14666,88179.0,88170.0,0.01134172]
[1767126310897,0.14666,88179.0,88169.0,0.02270185]
[1767126311098,0.14666,88179.0,88170.0,0.01134172]
[1767126311486,0.14666,88179.0,88169.0,0.02270185]
[1767126312312,0.14666,88179.0,88169.0,0.01136]
[1767126313503,0.14666,88179.0,88169.0,0.02270185]
[1767126313702,0.14666,88179.0,88169.0,0.01136]
[1767126314219,0.14666,88179.0,88162.0,0.01134275]
[1767126314220,0.000549,88169.0,88149.0,0.07268]
[1767126314419,0.45217371,88160.0,88150.0,0.06808108]
[1767126314622,0.45217371,88160.0,88151.0,0.06806463]
[1767126314788,0.14666,88162.0,88151.0,0.06806463]
[1767126314989,0.14666,88162.0,88154.0,0.01134378]
[1767126315188,0.14666,88167.0,88156.0,0.01134352]
[1767126315468,0.14666,88167.0,88155.0,0.01134365]
[1767126316511,0.15800211,88167.0,88155.0,0.01134365]
[1767126316687,0.14666,88167.0,88155.0,0.01134365]
[1767126317178,0.15800211,88167.0,88154.0,0.01134378]
[1767126317356,0.15800211,88167.0,88153.0,0.06806288]
[1767126317555,0.15800211,88167.0,88154.0,0.01134378]
[1767126317724,0.01134224,88166.0,88154.0,0.01134378]
[1767126317934,0.15800211,88167.0,88154.0,0.01134378]
[1767126318344,0.14666,88167.0,88155.0,0.01134365]
[1767126318748,0.14666,88167.0,88155.0,0.06806191]
[1767126319049,0.01134134,88173.0,88158.0,0.01134327]
[1767126319050,0.15857134,88173.0,88158.0,0.01134327]
[1767126319868,0.45217371,88170.0,88159.0,0.01134314]
[1767126320278,0.45217371,88170.0,88158.0,0.01134327]
[1767126320515,0.45217371,88170.0,88159.0,0.01134314]
[1767126321101,0.45217371,88170.0,88158.0,0.01134327]
[1767126323037,0.46351543,88170.0,88157.0,0.02270339]
[1767126323546,0.46351543,88170.0,88158.0,0.01134327]
[1767126323911,0.45217371,88170.0,88158.0,0.01134327]
[1767126324813,0.45217371,88170.0,88159.0,0.01134314]
[1767126325227,0.45217371,88170.0,88158.0,0.01134327]
[1767126326396,0.45217371,88170.0,88159.0,0.01134314]
[1767126326650,0.01134159,88171.0,88158.0,0.01134327]
[1767126328056,0.01134159,88171.0,88159.0,0.01134314]
[1767126328258,0.01134146,88172.0,88159.0,0.01134314]
[1767126329373,0.01134146,88172.0,88158.0,0.01134327]
[1767126329592,0.01134146,88172.0,88159.0,0.01134314]
[1767126330054,0.15857146,88172.0,88159.0,0.01134314]
[1767126330666,0.01134095,88176.0,88162.0,0.06805644]
[1767126330872,0.15857082,88177.0,88162.0,0.06805644]
[1767126331049,0.14723,88175.0,88162.0,0.06805644]
[1767126331252,0.15857108,88175.0,88162.0,0.01134275]
[1767126331451,0.14723,88175.0,88162.0,0.01134275]
[1767126332121,0.15857108,88175.0,88162.0,0.01134275]
[1767126332970,0.15857121,88174.0,88161.0,0.01134288]
[1767126333388,0.14723,88174.0,88163.0,0.01134262]
[1767126333550,0.14723,88174.0,88164.0,0.01136]
[1767126333751,0.14723,88174.0,88164.0,0.02270249]
[1767126333996,0.14723,88174.0,88164.0,0.01136]
[1767126335199,0.01134134,88173.0,88164.0,0.01136]
[1767126335607,0.01134146,88172.0,88164.0,0.01136]
[1767126335843,0.01134146,88172.0,88164.0,0.010811]
[1767126336006,0.15857134,88173.0,88164.0,0.010811]
[1767126336208,0.01134146,88172.0,88164.0,0.010811]
[1767126336450,0.15857146,88172.0,88164.0,0.010811]
[1767126336852,0.01134159,88171.0,88164.0,0.010811]
[1767126337233,0.15857146,88172.0,88164.0,0.010811]
[1767126338568,0.01134159,88171.0,88164.0,0.010811]
[1767126338867,0.01134172,88170.0,88164.0,0.010811]
[1767126339066,0.01134159,88171.0,88164.0,0.010811]
[1767126340366,0.01134172,88170.0,88164.0,0.010811]
[1767126340622,0.01134185,88169.0,88164.0,0.010811]
[1767126340788,0.14723,88169.0,88164.0,0.010811]
[1767126351338,0.01134134,88173.0,88164.0,0.010811]
[1767126351539,0.14673,88173.0,88164.0,0.010811]
[1767126351757,0.15807134,88173.0,88164.0,0.010811]
[1767126351984,0.14673,88173.0,88164.0,0.010811]
[1767126356483,0.15807134,88173.0,88164.0,0.010811]
[1767126357016,0.15807146,88172.0,88164.0,0.010811]
[1767126357398,8.2e-05,88177.0,88164.0,0.00438258]
[1767126357399,0.05670964,88169.0,88164.0,0.00438258]
[1767126357599,0.15807198,88168.0,88164.0,0.00438258]
[1767126358183,0.06805267,88167.0,88164.0,0.00438258]
[1767126358406,0.14673,88158.0,88149.0,0.00010665]
[1767126358576,0.14673,88158.0,88149.0,0.01146665]
[1767126359707,0.14673,88158.0,88149.0,0.02281107]
[1767126360112,0.14673,88158.0,88149.0,0.01146665]
[1767126360909,0.14673,88158.0,88149.0,0.02281107]
[1767126361326,0.14673,88158.0,88149.0,0.01146665]
[1767126361492,0.14673,88158.0,88149.0,0.02281107]
[1767126361712,0.14673,88158.0,88149.0,0.01146665]
[1767126365138,0.14683,88164.0,88150.0,0.01134429]
[1767126365341,0.14683,88164.0,88151.0,0.01134417]
[1767126365644,0.14683,88164.0,88152.0,0.01134404]
[1767126365869,0.14683,88164.0,88153.0,0.01134391]
[1767126366081,0.14683,88164.0,88152.0,0.01134404]
[1767126366739,0.14683,88164.0,88154.0,0.01134378]
[1767126366937,0.14683,88164.0,88153.0,0.01134391]
[1767126367948,0.14683,88164.0,88152.0,0.01134404]
[1767126368361,0.14683,88164.0,88153.0,0.01134391]
[1767126368526,0.14683,88164.0,88152.0,0.01134404]
[1767126369623,0.14683,88164.0,88153.0,0.01134391]
[1767126371114,0.14683,88164.0,88151.0,0.01134417]
[1767126371316,0.01134275,88162.0,88145.0,0.0567241]
[1767126371666,0.14683,88161.0,88147.0,0.05672325]
[1767126371810,0.14683,88161.0,88149.0,0.02281107]
[1767126372342,0.14683,88161.0,88150.0,0.01134429]
[1767126375270,0.14683,88161.0,88149.0,0.02281107]
[1767126375571,0.14683,88158.0,88149.0,0.01146665]
[1767126376323,0.01134275,88162.0,88149.0,0.02281107]
[1767126376528,0.13921,88161.0,88149.0,0.02281107]
[1767126377039,0.15055288,88161.0,88149.0,0.01146665]
[1767126377241,0.13921,88158.0,88150.0,0.01136]
[1767126387128,0.13921,88158.0,88151.0,0.01136]
[1767126387354,0.13921,88158.0,88149.0,0.00010665]
[1767126387552,0.13921,88158.0,88152.0,0.01136]
[1767126390305,0.13921,88158.0,88146.0,0.06827922]
[1767126390306,0.13921,88151.0,88146.0,0.0002108]
[1767126390587,0.13928664,88151.0,88146.0,8e-07]
[1767126392272,0.15063081,88151.0,88146.0,8e-07]
[1767126392603,0.13921,88150.0,88146.0,8e-07]
[1767126398305,0.13921,88150.0,88144.0,8e-07]
[1767126401354,0.15055429,88150.0,88144.0,8e-07]
[1767126401508,0.13921,88150.0,88144.0,8e-07]
[1767126402091,0.15055429,88150.0,88144.0,8e-07]
[1767126402314,0.13921,88150.0,88144.0,8e-07]
[1767126402735,0.15055429,88150.0,88144.0,8e-07]
[1767126402936,0.13921,88150.0,88144.0,8e-07]
[1767126403137,0.13921,88148.0,88144.0,8e-07]
[1767126404343,0.13921,88148.0,88138.0,0.02270584]
[1767126405261,0.13921,88148.0,88139.0,0.01134571]
[1767126405423,0.13921,88148.0,88138.0,0.02270584]
[1767126406559,0.13856079,88148.0,88138.0,0.02270584]
[1767126407378,0.13856079,88148.0,88139.0,0.01134571]
[1767126407553,0.13856079,88148.0,88138.0,0.02270584]
[1767126408261,0.13856079,88148.0,88138.0,0.01136]
[1767126408460,0.13856079,88148.0,88138.0,0.02270584]
[1767126408841,0.13856079,88148.0,88138.0,0.01136]
[1767126417816,0.13856079,88148.0,88138.0,0.02270584]
[1767126418018,0.13856079,88148.0,88138.0,0.01136]
[1767126419154,0.13856079,88148.0,88138.0,0.02270584]
[1767126419536,0.01134211,88167.0,88150.0,0.01134429]
[1767126419718,0.144,88166.0,88153.0,0.01134391]
[1767126419917,0.144,88166.0,88157.0,0.01134339]
[1767126420122,0.144,88166.0,88155.0,0.01134365]
[1767126420462,0.01134211,88167.0,88155.0,0.12527]
[1767126420690,0.01134224,88166.0,88155.0,0.12527]
[1767126420961,0.4523588,88165.0,88155.0,0.12527]
[1767126421543,0.46370116,88165.0,88155.0,0.12527]
[1767126422550,0.01134314,88159.0,88155.0,0.12527]
[1767126422730,0.144,88157.0,88150.0,8.871e-05]
[1767126426006,0.14322069,88157.0,88150.0,8.871e-05]
[1767126426213,0.14322069,88157.0,88140.0,0.01134558]
[1767126426214,0.1483664,88159.0,88133.0,0.13733648]
[1767126426356,0.4523588,88143.0,88137.0,0.01134597]
[1767126426558,0.14822,88148.0,88137.0,0.01134597]
[1767126426559,0.4523588,88147.0,88138.0,0.01134584]
[1767126426764,0.4523588,88147.0,88137.0,0.01134597]
[1767126427345,0.4523588,88147.0,88136.0,0.0113461]
[1767126427820,0.4523588,88147.0,88137.0,0.01134597]
[1767126428531,0.14822,88146.0,88134.0,0.02270635]
[1767126428690,0.4523588,88145.0,88135.0,0.05673067]
[1767126428891,0.4523588,88145.0,88138.0,0.01134584]
[1767126429098,0.14822,88146.0,88136.0,0.0113461]
[1767126429296,0.6005788,88146.0,88137.0,0.01134597]
[1767126429798,0.6005788,88146.0,88138.0,0.01134584]
[1767126430226,0.6005788,88146.0,88137.0,0.01134597]
[1767126430580,0.6005788,88146.0,88136.0,0.0113461]
[1767126430900,0.6005788,88146.0,88137.0,0.01134597]
[1767126431095,0.6005788,88146.0,88136.0,0.0113461]
[1767126431294,0.6005788,88146.0,88134.0,0.02270635]
[1767126431508,0.4523588,88144.0,88134.0,0.02270635]
[1767126431943,0.4523588,88144.0,88135.0,0.01134623]
[1767126432151,0.4523588,88144.0,88136.0,0.0113461]
[1767126432459,0.14822,88146.0,88135.0,0.01134623]
[1767126432644,0.6005788,88146.0,88135.0,0.01134623]
[1767126434409,0.6005788,88146.0,88136.0,0.0113461]
[1767126435218,0.14822,88146.0,88136.0,0.0113461]
[1767126435418,0.14822,88146.0,88134.0,0.02270635]
[1767126435617,0.14822,88146.0,88135.0,0.01134623]
[1767126436277,0.14822,88146.0,88136.0,0.0113461]
[1767126436443,0.14822,88146.0,88137.0,0.01134597]
[1767126437653,0.14822,88146.0,88137.0,0.06807572]
[1767126438093,0.14822,88146.0,88138.0,0.01134584]
[1767126438254,0.14822,88146.0,88137.0,0.01134597]
[1767126438672,0.14822,88146.0,88134.0,0.02270635]
[1767126438856,0.14822,88146.0,88135.0,0.01134623]
[1767126439060,0.14822,88146.0,88137.0,0.01134597]
[1767126439678,0.14822,88146.0,88136.0,0.0113461]
[1767126439914,0.14822,88146.0,88138.0,0.01134584]
[1767126440056,0.14822,88146.0,88137.0,0.01134597]
[1767126440265,0.14822,88146.0,88136.0,0.0113461]
[1767126440672,0.14822,88146.0,88135.0,0.01134623]
[1767126440866,0.14822,88146.0,88136.0,0.0113461]
[1767126441273,0.6005788,88146.0,88136.0,0.0113461]
[1767126441678,0.6005788,88146.0,88134.0,0.01136]
[1767126441877,0.01134468,88147.0,88134.0,0.01136]
[1767126441878,0.1579952,88143.0,88134.0,0.01136]
[1767126442085,0.1579952,88143.0,88133.0,0.0004]
[1767126442408,0.14665,88143.0,88134.0,0.01136]
[1767126444417,0.4523588,88144.0,88134.0,0.01136]
[1767126444647,0.14665,88143.0,88134.0,0.01136]
[1767126444826,0.14665,88143.0,88134.0,0.02270635]
[1767126445236,0.14665,88143.0,88135.0,0.01134623]
[1767126445376,0.14665,88143.0,88134.0,0.01136]
[1767126445978,0.1579952,88143.0,88134.0,0.01136]
[1767126446195,0.14665,88133.0,88131.0,0.0004]
[1767126446385,0.14665,88133.0,88131.0,0.00047664]
[1767126447484,0.14665,88133.0,88131.0,6.4e-07]
[1767126450058,0.06807489,88139.0,88131.0,6.4e-07]
[1767126450377,0.14665,88137.0,88131.0,6.4e-07]
[1767126451895,0.14665,88137.0,88126.0,0.0004]
[1767126451896,0.01134635,88134.0,88126.0,0.0004]
[1767126452093,0.01134635,88134.0,88117.0,0.28911734]
[1767126452094,0.14665,88125.0,88120.0,0.0001464]
[1767126453473,0.146174,88125.0,88120.0,0.0001464]
[1767126461149,0.13621195,88125.0,88120.0,0.0001464]
[1767126461358,0.05673977,88122.0,88117.0,0.0234141]
[1767126461603,0.14665,88116.0,88115.0,4.1e-06]
[1767126462238,0.06809102,88118.0,88102.0,0.0001464]
[1767126462239,0.20339595,88112.0,88111.0,1e-08]
[1767126463015,0.14665,88112.0,88111.0,1e-08]
[1767126464009,0.20339595,88112.0,88111.0,1e-08]
[1767126464213,0.14665,88112.0,88111.0,1e-08]
[1767126464398,0.20339595,88112.0,88111.0,1e-08]
[1767126465115,0.14665,88112.0,88111.0,1e-08]
[1767126467285,0.14600064,88112.0,88111.0,1e-08]
[1767126468844,0.01134932,88111.0,88104.0,0.00019763]
[1767126469044,0.14600064,88112.0,88104.0,0.00019763]
[1767126469785,0.14545064,88112.0,88104.0,0.00019763]
[1767126469986,0.01134841,88118.0,88104.0,0.00019763]
[1767126470234,0.14891,88116.0,88104.0,0.00019763]
[1767126470435,0.14891,88116.0,88104.0,0.01154785]
[1767126470709,0.16025867,88116.0,88104.0,0.00019763]
[1767126471123,0.1602588,88115.0,88104.0,0.00019763]
[1767126472610,0.01134893,88114.0,88104.0,0.00019763]
[1767126472775,0.1602588,88115.0,88104.0,0.00019763]
[1767126474786,0.14891,88115.0,88104.0,0.00019763]
[1767126475522,0.14891,88115.0,88104.0,0.01154785]
[1767126475730,0.14891,88115.0,88105.0,0.01135009]
[1767126475887,0.14891,88115.0,88104.0,0.01154785]
[1767126476278,0.14891,88115.0,88105.0,0.01135009]
[1767126476701,0.14891,88115.0,88106.0,0.01134996]
[1767126476913,0.14891,88115.0,88105.0,0.01135009]
[1767126477895,0.14891,88115.0,88106.0,0.01134996]
[1767126478296,0.46395966,88120.0,88107.0,0.01134983]
[1767126478500,0.14891,88119.0,88107.0,0.01134983]
[1767126478704,0.16025829,88119.0,88107.0,0.01134983]
[1767126479225,0.14891,88119.0,88107.0,0.01134983]
[1767126479623,0.14891,88119.0,88109.0,0.01134957]
[1767126479961,0.14891,88119.0,88107.0,0.01134983]
[1767126480438,0.16025829,88119.0,88105.0,0.01135009]
[1767126480815,0.16025841,88118.0,88105.0,0.01135009]
[1767126481010,0.14891,88118.0,88106.0,0.01134996]
[1767126481209,0.14891,88118.0,88107.0,0.01134983]
[1767126481559,0.14891,88118.0,88108.0,0.0113497]
[1767126481763,0.14891,88118.0,88107.0,0.01134983]
[1767126481914,0.14891,88118.0,88108.0,0.0113497]
[1767126482314,0.14891,88118.0,88107.0,0.01130849]
[1767126482704,0.16027,88118.0,88107.0,0.01130849]
[1767126483547,0.16027,88118.0,88106.0,0.06809921]
[1767126483950,0.16027,88118.0,88107.0,0.01134983]
[1767126484573,0.01136,88118.0,88108.0,0.0113497]
[1767126484779,0.01136,88118.0,88107.0,0.01134983]
[1767126484990,0.01136,88118.0,88109.0,0.01134957]
[1767126485362,0.01136,88118.0,88110.0,0.01134944]
[1767126485969,0.01136,88118.0,88109.0,0.01134957]
[1767126486869,0.01136,88118.0,88108.0,0.0113497]
[1767126487285,0.01136,88118.0,88109.0,0.01134957]
[1767126487489,0.01136,88118.0,88108.0,0.0113497]
[1767126487709,0.45259966,88120.0,88108.0,0.0113497]
[1767126487891,0.01136,88118.0,88108.0,0.0113497]
[1767126488285,0.01136,88118.0,88109.0,0.01134957]
[1767126488614,0.01136,88118.0,88108.0,0.0113497]
[1767126491075,0.01136,88118.0,88110.0,0.01134944]
[1767126491308,0.01136,88118.0,88109.0,0.01134957]
[1767126492634,0.01136,88118.0,88108.0,0.0113497]
[1767126492854,0.01136,88118.0,88107.0,0.01134983]
[1767126493055,0.14441,88117.0,88104.0,0.00019763]
[1767126493259,0.000549,88107.0,88104.0,0.00019763]
[1767126493464,0.0113488,88115.0,88104.0,0.00019763]
[1767126493922,0.0567466,88111.0,88104.0,0.00019763]
[1767126494126,0.0567466,88111.0,88104.0,6.3e-07]
[1767126494127,0.15575932,88111.0,88104.0,6.3e-07]
[1767126494323,0.15575932,88111.0,88102.0,0.0001464]
[1767126494324,0.14441,88107.0,88102.0,0.0001464]
[1767126494498,0.14441,88106.0,88102.0,4e-07]
[1767126494848,0.15575996,88106.0,88102.0,4e-07]
[1767126494990,0.15575996,88106.0,88100.0,0.4999]
[1767126494991,0.14441,88102.0,88100.0,0.4999]
[1767126495324,0.14441,88101.0,88100.0,0.48703136]
[1767126495534,0.14441,88101.0,88093.0,0.0001464]
[1767126495535,0.01135125,88096.0,88093.0,1e-08]
[1767126495766,0.07946234,88103.0,88075.0,0.0002]
[1767126495768,0.15033,88077.0,88075.0,0.0002]
[1767126495956,0.15033,88077.0,88067.0,0.00040246]
[1767126495957,0.06812298,88076.0,88067.0,0.00025606]
[1767126496082,0.01135434,88072.0,88067.0,0.00025606]
[1767126496284,0.01135408,88074.0,88067.0,0.00025606]
[1767126496499,0.05677431,88068.0,88067.0,0.00025606]
[1767126496761,0.06812819,88070.0,88067.0,0.00025606]
[1767126496882,0.01135447,88071.0,88067.0,0.00036279]
[1767126497078,0.01135408,88074.0,88067.0,0.00036279]
[1767126497425,0.05677431,88068.0,88067.0,0.00036279]
[1767126497956,0.05677431,88068.0,88067.0,1e-08]
[1767126498562,0.0113546,88070.0,88060.0,1e-08]
[1767126498563,0.05577906,88062.0,88060.0,1e-08]
[1767126498763,0.05667386,88058.0,88057.0,1e-08]
[1767126499060,0.05667386,88058.0,88057.0,7.269e-05]
[1767126499262,0.05667386,88058.0,88057.0,7.268e-05]
[1767126499465,0.05678527,88051.0,88050.0,1e-08]
[1767126499607,0.05678527,88051.0,88050.0,8.097e-05]
[1767126500006,0.06814133,88053.0,88050.0,8.097e-05]
[1767126500328,0.05678517,88052.0,88050.0,8.097e-05]
[1767126500534,0.06814133,88053.0,88050.0,8.097e-05]
[1767126501237,0.01135679,88053.0,88050.0,8.097e-05]
[1767126501619,0.06814127,88053.0,88050.0,8.097e-05]
[1767126502377,0.01135666,88054.0,88050.0,8.097e-05]
[1767126502533,0.01135679,88053.0,88050.0,8.097e-05]
[1767126502735,0.01135666,88054.0,88050.0,8.097e-05]
[1767126502940,0.01135653,88055.0,88050.0,8.097e-05]
[1767126503342,0.01135666,88054.0,88050.0,8.097e-05]
[1767126504162,0.01135653,88055.0,88050.0,8.097e-05]
[1767126504365,0.01135666,88054.0,88050.0,8.097e-05]
[1767126504566,0.01135653,88055.0,88050.0,8.097e-05]
[1767126505099,0.01135563,88062.0,88050.0,8.097e-05]
[1767126505301,0.06813157,88065.0,88050.0,0.45268063]
[1767126505442,0.0113555,88063.0,88050.0,0.45268063]
[1767126505961,0.01135602,88059.0,88050.0,8.097e-05]
[1767126506143,0.05677618,88066.0,88050.0,8.097e-05]
[1767126506342,0.01135563,88062.0,88050.0,8.097e-05]
[1767126506539,0.01035788,88058.0,88050.0,8.097e-05]
[1767126506745,0.06613998,88058.0,88050.0,8.096e-05]
[1767126507016,0.01135628,88057.0,88051.0,0.01136]
[1767126507196,0.01135628,88057.0,88050.0,8.096e-05]
[1767126507197,0.01135628,88057.0,88052.0,0.01136]
[1767126507362,0.06613998,88058.0,88052.0,0.01136]
[1767126507363,0.00935876,88058.0,88052.0,0.01136]
[1767126507564,0.06800708,88060.0,88052.0,0.01136]
[1767126507779,0.00565628,88057.0,88052.0,0.01136]
[1767126508008,0.02828061,88059.0,88052.0,0.01136]
[1767126508210,0.0623121,88060.0,88052.0,0.01136]
[1767126508211,0.14198,88081.0,88056.0,0.0113564]
[1767126508414,0.45278036,88110.0,88052.0,0.01136]
[1767126508415,0.1421607,88088.0,88071.0,0.09982]
[1767126508990,0.1421607,88088.0,88072.0,0.09982]
[1767126510026,0.14198,88088.0,88074.0,0.01135408]
[1767126511009,0.14198,88088.0,88080.0,0.01135331]
[1767126511207,0.15334,88088.0,88078.0,0.01135357]
[1767126511436,0.15334,88088.0,88077.0,0.0113537]
[1767126511651,0.15334,88088.0,88081.0,0.01135318]
[1767126511808,0.15334,88088.0,88081.0,0.01131061]
[1767126512023,0.15334,88088.0,88085.0,0.01135267]
[1767126512484,0.15334,88088.0,88085.0,0.0681156]
[1767126512611,0.15334,88088.0,88085.0,0.06807303]
[1767126513424,0.15334,88088.0,88086.0,0.05671832]
[1767126514385,0.01136,88088.0,88086.0,0.05667743]
[1767126515488,0.15334,88088.0,88086.0,0.05667743]
[1767126517108,0.14198,88088.0,88086.0,0.05667743]
[1767126517340,0.14198,88091.0,88089.0,0.0681127]
[1767126517621,0.01136,88090.0,88087.0,0.06811447]
[1767126518790,0.14198,88091.0,88088.0,0.01135228]
[1767126519015,0.01136,88090.0,88088.0,0.01135228]
[1767126520113,0.14198,88091.0,88088.0,0.01135228]
[1767126520317,0.01136,88090.0,88088.0,0.01135228]
[1767126522611,0.01136,88090.0,88087.0,0.01135241]
[1767126524274,0.15334,88090.0,88087.0,0.01135241]
[1767126524697,0.01136,88090.0,88087.0,0.01135241]
[1767126526244,0.01136,88090.0,88087.0,0.01122748]
[1767126527809,0.14691,88089.0,88087.0,0.01122748]
[1767126528215,0.01136,88090.0,88087.0,0.01122748]
[1767126529641,0.01136,88090.0,88080.0,0.05676602]
[1767126529849,0.15827,88090.0,88080.0,0.05676602]
[1767126530206,0.15827,88090.0,88083.0,0.01135292]
[1767126530629,0.15827,88090.0,88077.0,0.0113537]
[1767126531377,0.15827,88090.0,88076.0,0.06812289]
[1767126531735,0.15827,88090.0,88077.0,0.0113537]
[1767126532157,0.15827,88090.0,88078.0,0.01135357]
[1767126532337,0.15827,88090.0,88077.0,0.0113537]
[1767126532880,0.14691,88089.0,88078.0,0.01135357]
[1767126533084,0.14691,88089.0,88077.0,0.0113537]
[1767126533263,0.14691,88089.0,88078.0,0.01135357]
[1767126533445,0.14691,88087.0,88078.0,0.01135357]
[1767126533642,0.14691,88087.0,88077.0,0.0113537]
[1767126533852,0.14691,88087.0,88076.0,0.01135383]
[1767126534049,0.14691,88087.0,88077.0,0.0113537]
[1767126534273,0.14691,88087.0,88078.0,0.01135357]
[1767126534871,0.14691,88087.0,88079.0,0.01135344]
[1767126535317,0.14691,88087.0,88078.0,0.01135357]
[1767126535661,0.14691,88087.0,88077.0,0.0113537]
[1767126536515,0.14691,88087.0,88078.0,0.01135357]
[1767126537008,0.14691,88087.0,88080.0,0.01135331]
[1767126539334,0.4530734,88088.0,88080.0,0.01135331]
[1767126539335,0.4644334,88088.0,88081.0,0.01135318]
[1767126539538,0.01136,88088.0,88081.0,0.01135318]
[1767126539736,0.01136,88088.0,88080.0,0.01135331]
[1767126540237,0.01136,88088.0,88082.0,0.01135305]
[1767126541400,0.01136,88088.0,88081.0,0.01135318]
[1767126541639,0.15827,88088.0,88079.0,0.01135344]
[1767126541861,0.15827,88088.0,88080.0,0.01135331]
[1767126542184,0.01136,88088.0,88080.0,0.01135331]
[1767126542386,0.01136,88088.0,88079.0,0.01135344]
[1767126542591,0.01136,88088.0,88080.0,0.01135331]
[1767126543904,0.01136,88088.0,88081.0,0.01135318]
[1767126544950,0.01136,88088.0,88082.0,0.01135305]
[1767126545960,0.14597,88087.0,88072.0,0.05677119]
[1767126546266,0.14597,88081.0,88073.0,0.01135421]
[1767126546476,0.01136,88081.0,88074.0,0.01135408]
[1767126546645,0.01136,88081.0,88075.0,0.01135395]
[1767126546804,0.01136,88081.0,88077.0,0.0113537]
[1767126547546,0.01136,88081.0,88076.0,0.01135383]
[1767126547921,0.01136,88081.0,88077.0,0.0113537]
[1767126548632,0.01136,88081.0,88076.0,0.01135383]
[1767126549033,0.01136,88081.0,88077.0,0.0113537]
[1767126549236,0.01136,88081.0,88076.0,0.01135383]
[1767126551404,0.01136,88081.0,88075.0,0.01135395]
[1767126552554,0.01136,88081.0,88076.0,0.01135383]
[1767126552759,0.01136,88081.0,88075.0,0.01135395]
[1767126553865,0.01136,88081.0,88074.0,0.06812408]
[1767126554438,0.01136,88081.0,88075.0,0.01135395]
[1767126555619,0.01136,88081.0,88076.0,0.01135383]
[1767126555834,0.01136,88081.0,88075.0,0.01135395]
[1767126556513,0.01136,88081.0,88076.0,0.01135383]
[1767126557882,0.01136,88081.0,88077.0,0.0113537]
[1767126558089,0.01136,88081.0,88076.0,0.01135383]
[1767126558213,0.01136,88081.0,88075.0,0.01135395]
[1767126559267,0.01136,88081.0,88076.0,0.01135383]
[1767126559450,0.01136,88081.0,88075.0,0.01135395]
[1767126560093,0.01136,88081.0,88076.0,0.01135383]
[1767126560300,0.01136,88081.0,88075.0,0.01135395]
[1767126561271,0.01136,88081.0,88074.0,0.06812408]
[1767126561851,0.01136,88081.0,88075.0,0.01135395]
[1767126563567,0.01136,88081.0,88074.0,0.06812408]
[1767126563793,0.01136,88081.0,88075.0,0.01135395]
[1767126564284,0.01136,88081.0,88076.0,0.01135383]
[1767126564670,0.01136,88081.0,88075.0,0.01135395]
[1767126565606,0.01136,88081.0,88074.0,0.06812408]
[1767126565815,0.01136,88081.0,88076.0,0.01135383]
[1767126566185,0.01136,88086.0,88081.0,0.000548]
[1767126566399,0.01136,88085.0,88080.0,0.01135331]
[1767126566618,0.01136,88085.0,88079.0,0.01135344]
[1767126567320,0.01136,88085.0,88080.0,0.01135331]
[1767126567662,0.01136,88085.0,88079.0,0.01135344]
[1767126567861,0.01136,88085.0,88080.0,0.05676657]
[1767126568169,0.05675505,88098.0,88076.0,0.22707488]
[1767126568170,6.11514906,88100.0,88097.0,0.01135112]
[1767126568355,6.11525579,88100.0,88099.0,0.14557]
[1767126568950,6.11525579,88100.0,88097.0,0.01135112]
[1767126569300,6.11470779,88100.0,88097.0,0.01135112]
[1767126569437,6.11470779,88100.0,88096.0,0.01135125]
[1767126569633,6.11470779,88100.0,88097.0,0.01135112]
[1767126571621,6.11470779,88100.0,88098.0,0.14557]
[1767126574003,6.11470779,88100.0,88097.0,0.01135112]
[1767126574207,6.11470779,88100.0,88096.0,0.01135125]
[1767126574406,6.11470779,88100.0,88097.0,0.01135112]
[1767126575648,6.11470779,88100.0,88096.0,0.01135125]
[1767126576309,6.11470779,88100.0,88096.0,0.06810748]
[1767126576973,6.11470779,88100.0,88097.0,0.01135112]
[1767126581591,6.11470779,88100.0,88094.0,0.01136]
[1767126581801,6.11470779,88100.0,86610.0,0.06054627]
[1767126581802,0.000549,88094.0,88084.0,0.02271279]
[1767126582034,0.000549,88094.0,88085.0,0.02271267]
[1767126582233,0.13803,88099.0,88086.0,0.01135254]
[1767126582581,0.13803,88099.0,88085.0,0.02271267]
[1767126582790,0.13803,88099.0,88086.0,0.01135254]
[1767126583452,0.13803,88099.0,88085.0,0.02271267]
[1767126584352,0.14938086,88099.0,88085.0,0.02271267]
[1767126585325,0.01135138,88095.0,88085.0,0.01136]
[1767126585530,0.06810906,88094.0,88085.0,0.01136]
[1767126585744,0.01135151,88094.0,88085.0,0.010811]
[1767126586120,0.01135163,88093.0,88085.0,0.010811]
[1767126586325,0.0681079,88096.0,88085.0,0.010811]
[1767126586554,0.01135112,88097.0,88085.0,0.010811]